[Event "Czech Open-E Teams 2022"]
[Site "Pardubice"]
[Date "2022.07.17"]
[Round "7.9"]
[White "Hrdina, Robin"]
[Black "Cerveny, Martin"]
[Result "0-1"]
[ECO "B22"]
[WhiteElo "2162"]
[BlackElo "2396"]
[Annotator "ChessBase"]
[PlyCount "68"]
[EventDate "2022.07.14"]
[EventType "team-tourn"]
[EventCountry "CZE"]
[SourceTitle "playchess.com"]
[Source "ChessBase"]
[SourceQuality "1"]
[TimeControl "5400+30"]

1. e4 {[%emt 0:00:02]} c5 {[%emt 0:00:05]} 2. c3 {[%emt 0:00:03]} Nf6 {[%emt 0:00:18]} 3. e5 {[%emt 0:00:06]} Nd5 {[%emt 0:00:05]} 4. d4 {[%emt 0:00:04]} cxd4 {[%emt 0:00:37]} 5. Nf3 {[%emt 0:00:06]} e6 {[%emt 0:00:29]} 6. cxd4 {[%emt 0:00:06]} b6 {[%emt 0:00:07]} 7. Bd3 {[%emt 0:00:07]} Ba6 {[%emt 0:00:49]} 8. O-O {[%emt 0:00:06]} Bxd3 {[%emt 0:01:59]} 9. Qxd3 {[%emt 0:00:07]} Nc6 {[%emt 0:00:10]} 10. Nc3 {[%emt 0:00:07]} Nxc3 {[%emt 0:00:59]} 11. bxc3 {[%emt 0:00:05]} d5 {[%emt 0:00:52]} 12. exd6 {[%emt 0:00:19]} Bxd6 {[%emt 0:01:50]} 13. d5 {[%emt 0:05:34]} exd5 {[%emt 0:05:02]} 14. Re1+ {[%emt 0:01:50]} Ne7 {[%emt 0:02:23]} 15. Bg5 {[%emt 0:00:39]} O-O {[%emt 0:06:32]} 16. Rad1 {[%emt 0:02:14]} Rc8 {[%emt 0:01:04]} 17. Nd4 {[%emt 0:02:32]} h6 {[%emt 0:04:26]} 18. Bh4 {[%emt 0:01:37]} Qd7 {[%emt 0:00:35]} 19. Nb5 {[%emt 0:01:07]} Ng6 {[%emt 0:00:55]} 20. Nxd6 {[%emt 0:00:28]} Qxd6 {[%emt 0:00:07]} 21. Bg3 {[%emt 0:00:12]} Qa3 {[%emt 0:01:38]} 22. Qxd5 {[%emt 0:01:23]} Qxc3 {[%emt 0:00:32]} 23. h4 {[%emt 0:04:51]} Rfe8 {[%emt 0:03:15]} 24. Rxe8+ {[%emt 0:00:28]} Rxe8 {[%emt 0:00:07]} 25. Qd7 {[%emt 0:00:55]} Re1+ {[%emt 0:01:41]} 26. Rxe1 {[%emt 0:00:16]} Qxe1+ {[%emt 0:00:05]} 27. Kh2 {[%emt 0:00:05]} Qe7 {[%emt 0:00:10]} 28. Qc8+ {[%emt 0:00:25]} Kh7 {[%emt 0:01:42]} 29. Qf5 {[%emt 0:02:46]} Qe6 {[%emt 0:03:07]} 30. Qd3 {[%emt 0:03:44]} f5 {[%emt 0:02:40]} 31. h5 {[%emt 0:00:06]} Ne7 {[%emt 0:00:21]} 32. Bb8 {[%emt 0:03:35]} Nc6 {[%emt 0:00:35]} 33. Bc7 {[%emt 0:00:07]} Qf7 {[%emt 0:01:12]} 34. Bf4 {[%emt 0:04:12]} Qxh5+ {[%emt 0:01:43]} 0-1

[Event "Czech Open-E Teams 2022"]
[Site "Pardubice"]
[Date "2022.07.17"]
[Round "7.10"]
[White "Szotkowski, Jakub"]
[Black "Zvolensky, David"]
[Result "1-0"]
[ECO "E06"]
[WhiteElo "2344"]
[BlackElo "2196"]
[Annotator "ChessBase"]
[PlyCount "84"]
[EventDate "2022.07.14"]
[EventType "team-tourn"]
[EventCountry "CZE"]
[SourceTitle "playchess.com"]
[Source "ChessBase"]
[SourceQuality "1"]
[TimeControl "5400+30"]

1. d4 {[%emt 0:00:09]} Nf6 {[%emt 0:00:03]} 2. c4 {[%emt 0:00:26]} e6 {[%emt 0:00:04]} 3. g3 {[%emt 0:00:09]} d5 {[%emt 0:00:19]} 4. Bg2 {[%emt 0:00:06]} Be7 {[%emt 0:00:04]} 5. Nf3 {[%emt 0:00:06]} O-O {[%emt 0:00:05]} 6. O-O {[%emt 0:00:06]} dxc4 {[%emt 0:00:02]} 7. Qa4 {[%emt 0:00:19]} a6 {[%emt 0:00:08]} 8. Qxc4 {[%emt 0:00:06]} b5 {[%emt 0:00:02]} 9. Qc2 {[%emt 0:00:08]} Bb7 {[%emt 0:00:04]} 10. Bf4 {[%emt 0:04:09]} Nc6 {[%emt 0:04:09]} 11. Rd1 {[%emt 0:03:26]} Nb4 {[%emt 0:00:17]} 12. Qc1 {[%emt 0:09:59]} Nbd5 {[%emt 0:11:40]} 13. Nc3 {[%emt 0:00:42]} Qc8 {[%emt 0:04:58]} 14. Nxd5 {[%emt 0:09:51]} Nxd5 {[%emt 0:01:22]} 15. Bg5 {[%emt 0:00:53]} f6 {[%emt 0:02:12]} 16. Be3 {[%emt 0:06:46]} c5 {[%emt 0:00:24]} 17. dxc5 {[%emt 0:00:54]} Nxe3 {[%emt 0:00:24]} 18. Qxe3 {[%emt 0:00:08]} Bxc5 {[%emt 0:00:16]} 19. Nd4 {[%emt 0:00:55]} Bxd4 {[%emt 0:01:32]} 20. Rxd4 {[%emt 0:02:55]} Bxg2 {[%emt 0:00:04]} 21. Kxg2 {[%emt 0:00:08]} Qc6+ {[%emt 0:00:17]} 22. Qf3 {[%emt 0:01:16]} Qxf3+ {[%emt 0:03:30]} 23. Kxf3 {[%emt 0:00:06]} Rfd8 {[%emt 0:00:12]} 24. Rad1 {[%emt 0:01:07]} Rxd4 {[%emt 0:01:06]} 25. Rxd4 {[%emt 0:00:07]} Ra7 {[%emt 0:00:03]} 26. Rd6 {[%emt 0:01:04]} Kf7 {[%emt 0:00:06]} 27. Rb6 {[%emt 0:00:07]} Ke7 {[%emt 0:00:07]} 28. Ke3 {[%emt 0:01:29]} e5 {[%emt 0:03:41]} 29. b3 {[%emt 0:12:33]} Kd7 {[%emt 0:00:29]} 30. Ke4 {[%emt 0:07:40]} Ke7 {[%emt 0:02:33]} 31. h4 {[%emt 0:02:49]} g6 {[%emt 0:00:36]} 32. e3 {[%emt 0:01:11]} h5 {[%emt 0:00:51]} 33. f3 {[%emt 0:00:31]} Rd7 {[%emt 0:00:17]} 34. Rxa6 {[%emt 0:00:14]} Rd2 {[%emt 0:00:10]} 35. g4 {[%emt 0:05:57]} hxg4 {[%emt 0:01:32]} 36. fxg4 {[%emt 0:00:07]} Rh2 {[%emt 0:00:03]} 37. g5 {[%emt 0:00:16]} Rxh4+ {[%emt 0:01:23]} 38. Kd5 {[%emt 0:00:08]} fxg5 {[%emt 0:00:31]} 39. Rxg6 {[%emt 0:00:42]} Rh2 {[%emt 0:00:16]} 40. Rxg5 {[%emt 0:04:12]} Rxa2 {[%emt 0:00:12]} 41. Rxe5+ {[%emt 0:00:19]} Kf6 {[%emt 0:00:18]} 42. Re6+ {[%emt 0:03:47]} Kf5 {[%emt 0:00:17]} 1-0

[Event "Czech Open-E Teams 2022"]
[Site "Pardubice"]
[Date "2022.07.17"]
[Round "7.12"]
[White "Vyskocil, Neklan"]
[Black "Vlkova, Anezka"]
[Result "1-0"]
[ECO "C05"]
[WhiteElo "2286"]
[BlackElo "1954"]
[Annotator "ChessBase"]
[PlyCount "83"]
[EventDate "2022.07.14"]
[EventType "team-tourn"]
[EventCountry "CZE"]
[SourceTitle "playchess.com"]
[Source "ChessBase"]
[SourceQuality "1"]
[TimeControl "5400+30"]

1. e4 {[%emt 0:03:50]} e6 {[%emt 0:00:06]} 2. d4 {[%emt 0:00:46]} d5 {[%emt 0:00:09]} 3. Nd2 {[%emt 0:00:28]} Nf6 {[%emt 0:00:10]} 4. e5 {[%emt 0:00:41]} Nfd7 {[%emt 0:00:07]} 5. c3 {[%emt 0:00:14]} c5 {[%emt 0:00:04]} 6. f4 {[%emt 0:01:03]} cxd4 {[%emt 0:04:04]} 7. cxd4 {[%emt 0:00:04]} Qa5 {[%emt 0:02:46]} 8. Bd3 {[%emt 0:05:48]} b6 {[%emt 0:13:26]} 9. Kf2 {[%emt 0:02:29]} Nc6 {[%emt 0:03:35]} 10. Nb3 {[%emt 0:01:54]} Qa4 {[%emt 0:00:34]} 11. Ne2 {[%emt 0:00:58]} Nb4 {[%emt 0:02:50]} 12. Bb1 {[%emt 0:00:46]} a5 {[%emt 0:08:32]} 13. a3 {[%emt 0:03:32]} Na6 {[%emt 0:00:41]} 14. Bd3 {[%emt 0:01:18]} Qc6 {[%emt 0:03:38]} 15. Be3 {[%emt 0:01:21]} Qb7 {[%emt 0:08:57]} 16. Rc1 {[%emt 0:00:32]} Nc7 {[%emt 0:03:08]} 17. Qc2 {[%emt 0:01:21]} Kd8 {[%emt 0:02:41]} 18. f5 {[%emt 0:07:07]} Be7 {[%emt 0:05:36]} 19. Rhf1 {[%emt 0:04:11]} Nf8 {[%emt 0:03:18]} 20. Kg1 {[%emt 0:00:44]} Bd7 {[%emt 0:00:46]} 21. fxe6 {[%emt 0:03:38]} Bxe6 {[%emt 0:04:12]} 22. Nf4 {[%emt 0:00:35]} Bd7 {[%emt 0:06:28]} 23. Qf2 {[%emt 0:10:12]} Nce6 {[%emt 0:05:09]} 24. Qg3 {[%emt 0:03:48]} Ng6 {[%emt 0:02:34]} 25. Nh5 {[%emt 0:08:14]} a4 {[%emt 0:03:08]} 26. Nd2 {[%emt 0:02:22]} Bh4 {[%emt 0:01:48]} 27. Qf3 {[%emt 0:00:46]} Rc8 {[%emt 0:00:53]} 28. Rxc8+ {[%emt 0:02:21]} Kxc8 {[%emt 0:01:19]} 29. Qe2 {[%emt 0:00:18]} Qc6 {[%emt 0:03:41]} 30. Nf3 {[%emt 0:03:16]} Kb8 {[%emt 0:01:37]} 31. Nxh4 {[%emt 0:00:18]} Nxh4 {[%emt 0:00:47]} 32. Rxf7 {[%emt 0:00:55]} Be8 {[%emt 0:01:54]} 33. Rf1 {[%emt 0:00:43]} Bg6 {[%emt 0:01:29]} 34. g3 {[%emt 0:05:16]} Bxd3 {[%emt 0:01:07]} 35. Qxd3 {[%emt 0:00:09]} Qe8 {[%emt 0:03:05]} 36. Nf4 {[%emt 0:07:05]} Nxf4 {[%emt 0:00:24]} 37. Bxf4 {[%emt 0:00:24]} Ng6 {[%emt 0:00:55]} 38. Bd2 {[%emt 0:01:35]} Ka7 {[%emt 0:01:34]} 39. Bb4 {[%emt 0:02:18]} h5 {[%emt 0:00:59]} 40. Qf3 {[%emt 0:00:53]} Qc6 {[%emt 0:01:16]} 41. Qf7+ {[%emt 0:06:12]} Ka6 {[%emt 0:00:06]} 42. e6 {[%emt 0:02:05]} 1-0

[Event "Czech Open-E Teams 2022"]
[Site "Pardubice"]
[Date "2022.07.17"]
[Round "7.13"]
[White "Vojta, Jakub"]
[Black "Cech, Pavel"]
[Result "1-0"]
[ECO "C16"]
[WhiteElo "2326"]
[BlackElo "2358"]
[Annotator "ChessBase"]
[PlyCount "78"]
[EventDate "2022.07.14"]
[EventType "team-tourn"]
[EventCountry "CZE"]
[SourceTitle "playchess.com"]
[Source "ChessBase"]
[SourceQuality "1"]
[TimeControl "5400+30"]

1. e4 {[%emt 0:00:11]} e6 {[%emt 0:00:16]} 2. d4 {[%emt 0:00:04]} d5 {[%emt 0:00:06]} 3. Nc3 {[%emt 0:01:21]} Bb4 {[%emt 0:00:37]} 4. e5 {[%emt 0:00:15]} b6 {[%emt 0:00:34]} 5. Qg4 {[%emt 0:00:15]} Bf8 {[%emt 0:00:14]} 6. f4 {[%emt 0:03:48]} Ne7 {[%emt 0:04:52]} 7. Be3 {[%emt 0:05:20]} Ba6 {[%emt 0:02:39]} 8. Bxa6 {[%emt 0:00:24]} Nxa6 {[%emt 0:00:05]} 9. Qe2 {[%emt 0:01:07]} Nb4 {[%emt 0:03:24]} 10. a3 {[%emt 0:01:20]} Nbc6 {[%emt 0:03:25]} 11. Nf3 {[%emt 0:00:02]} Qd7 {[%emt 0:02:28]} 12. Bf2 {[%emt 0:04:30]} Na5 {[%emt 0:10:01]} 13. Nd1 {[%emt 0:01:39]} Qc6 {[%emt 0:07:09]} 14. b3 {[%emt 0:04:31]} Ng6 {[%emt 0:01:02]} 15. g3 {[%emt 0:01:08]} h5 {[%emt 0:01:16]} 16. O-O {[%emt 0:02:01]} h4 {[%emt 0:06:38]} 17. Qd3 {[%emt 0:02:38]} hxg3 18. hxg3 Ne7 {[%emt 0:14:22]} 19. Ne3 {[%emt 0:02:41]} f5 {[%emt 0:04:40]} 20. Be1 {[%emt 0:05:25]} Nb7 {[%emt 0:03:49]} 21. Rc1 {[%emt 0:09:34]} Qd7 {[%emt 0:10:06]} 22. c4 {[%emt 0:04:23]} c5 {[%emt 0:00:07]} 23. b4 {[%emt 0:05:00]} dxc4 {[%emt 0:01:57]} 24. Rxc4 {[%emt 0:10:49]} b5 {[%emt 0:01:39]} 25. Rxc5 {[%emt 0:04:32]} Nxc5 {[%emt 0:00:05]} 26. bxc5 {[%emt 0:00:03]} a6 {[%emt 0:05:53]} 27. Qb3 {[%emt 0:01:37]} Qc6 {[%emt 0:06:44]} 28. Ba5 {[%emt 0:05:22]} Ra7 {[%emt 0:00:12]} 29. Kf2 {[%emt 0:01:53]} Rd7 {[%emt 0:00:56]} 30. Rd1 {[%emt 0:02:37]} Nd5 {[%emt 0:00:37]} 31. Nxd5 {[%emt 0:01:20]} Rxd5 {[%emt 0:00:04]} 32. Bb6 {[%emt 0:00:43]} Be7 {[%emt 0:00:25]} 33. Qb1 {[%emt 0:04:58]} Kd7 {[%emt 0:01:05]} 34. Ke3 {[%emt 0:01:22]} Rh3 {[%emt 0:01:12]} 35. Rg1 {[%emt 0:00:01]} g5 {[%emt 0:02:55]} 36. fxg5 {[%emt 0:01:02]} f4+ {[%emt 0:00:17]} 37. Kxf4 {[%emt 0:01:01]} Qa8 {[%emt 0:00:10]} 38. Qe4 {[%emt 0:00:53]} Qg8 {[%emt 0:01:57]} 39. a4 {[%emt 0:04:03]} Rh7 {[%emt 0:00:56]} 1-0

[Event "Czech Open-E Teams 2022"]
[Site "Pardubice"]
[Date "2022.07.17"]
[Round "7.14"]
[White "Sodoma, Jan"]
[Black "Virostko, Petr"]
[Result "1/2-1/2"]
[ECO "D12"]
[WhiteElo "2312"]
[BlackElo "2326"]
[Annotator "ChessBase"]
[PlyCount "39"]
[EventDate "2022.07.14"]
[EventType "team-tourn"]
[EventCountry "CZE"]
[SourceTitle "playchess.com"]
[Source "ChessBase"]
[SourceQuality "1"]
[TimeControl "5400+30"]

1. Nf3 {[%emt 0:00:03]} d5 {[%emt 0:00:18]} 2. d4 {[%emt 0:00:14]} Nf6 {[%emt 0:00:06]} 3. c4 {[%emt 0:00:05]} c6 {[%emt 0:00:04]} 4. e3 {[%emt 0:00:07]} Bf5 {[%emt 0:00:27]} 5. Nc3 {[%emt 0:00:11]} e6 {[%emt 0:00:08]} 6. Nh4 {[%emt 0:00:06]} Be4 {[%emt 0:00:10]} 7. f3 {[%emt 0:01:36]} Bg6 {[%emt 0:00:06]} 8. Qb3 {[%emt 0:00:46]} Qc7 {[%emt 0:00:57]} 9. cxd5 {[%emt 0:03:39]} Nxd5 {[%emt 0:02:53]} 10. Nxg6 {[%emt 0:04:58]} hxg6 {[%emt 0:00:12]} 11. Bd2 {[%emt 0:00:09]} Be7 {[%emt 0:05:59]} 12. O-O-O {[%emt 0:03:49]} b5 {[%emt 0:05:10]} 13. Kb1 {[%emt 0:01:44]} a6 {[%emt 0:04:07]} 14. Rc1 {[%emt 0:19:00]} Nxc3+ {[%emt 0:09:34]} 15. Bxc3 {[%emt 0:02:33]} Rxh2 {[%emt 0:12:21]} 16. Ba5 {[%emt 0:01:32]} Qg3 {[%emt 0:00:29]} 17. Be1 {[%emt 0:02:11]} Qc7 {[%emt 0:00:12]} 18. Ba5 {[%emt 0:00:59]} Qg3 {[%emt 0:00:10]} 19. Be1 {[%emt 0:06:03]} Qc7 {[%emt 0:00:08]} 20. Ba5 1/2-1/2

[Event "Czech Open-E Teams 2022"]
[Site "Pardubice"]
[Date "2022.07.17"]
[Round "7.15"]
[White "Nytra, Ondrej"]
[Black "Vitak, Jiri"]
[Result "1/2-1/2"]
[ECO "B92"]
[WhiteElo "2214"]
[BlackElo "2223"]
[Annotator "ChessBase"]
[PlyCount "75"]
[EventDate "2022.07.14"]
[EventType "team-tourn"]
[EventCountry "CZE"]
[SourceTitle "playchess.com"]
[Source "ChessBase"]
[SourceQuality "1"]
[TimeControl "5400+30"]

1. e4 {[%emt 0:00:04]} c5 {[%emt 0:00:15]} 2. Nf3 {[%emt 0:00:04]} d6 {[%emt 0:00:13]} 3. d4 {[%emt 0:00:07]} cxd4 {[%emt 0:00:05]} 4. Nxd4 {[%emt 0:00:02]} Nf6 {[%emt 0:00:07]} 5. Nc3 {[%emt 0:00:04]} a6 {[%emt 0:00:48]} 6. Be2 {[%emt 0:00:07]} e5 {[%emt 0:00:35]} 7. Nf3 {[%emt 0:00:04]} Be7 {[%emt 0:03:10]} 8. Bg5 {[%emt 0:00:04]} Nbd7 {[%emt 0:09:11]} 9. O-O {[%emt 0:00:07]} O-O {[%emt 0:01:01]} 10. Re1 {[%emt 0:00:50]} b5 {[%emt 0:01:32]} 11. a4 {[%emt 0:01:40]} bxa4 {[%emt 0:06:56]} 12. Nxa4 {[%emt 0:04:57]} Bb7 {[%emt 0:00:14]} 13. Bd3 {[%emt 0:00:20]} Qc7 {[%emt 0:03:21]} 14. Qe2 {[%emt 0:01:55]} Rfe8 {[%emt 0:07:04]} 15. c4 {[%emt 0:02:46]} Nc5 {[%emt 0:01:16]} 16. Nxc5 {[%emt 0:00:10]} dxc5 {[%emt 0:00:22]} 17. Bxf6 {[%emt 0:03:05]} Bxf6 {[%emt 0:00:11]} 18. Bc2 {[%emt 0:01:45]} Red8 {[%emt 0:00:52]} 19. Nd2 {[%emt 0:02:05]} Bg5 {[%emt 0:02:05]} 20. Nf3 {[%emt 0:02:32]} Bh6 {[%emt 0:01:10]} 21. Red1 {[%emt 0:02:37]} g6 {[%emt 0:00:57]} 22. h3 {[%emt 0:00:38]} f6 {[%emt 0:00:16]} 23. g4 {[%emt 0:06:10]} Bf4 {[%emt 0:01:00]} 24. Ra3 {[%emt 0:00:08]} Rxd1+ {[%emt 0:06:06]} 25. Qxd1 {[%emt 0:00:04]} Rd8 {[%emt 0:00:05]} 26. Rd3 {[%emt 0:00:05]} Rxd3 {[%emt 0:00:05]} 27. Qxd3 {[%emt 0:00:03]} f5 {[%emt 0:10:58]} 28. gxf5 {[%emt 0:02:31]} gxf5 {[%emt 0:00:11]} 29. Qe2 {[%emt 0:02:19]} Qc6 {[%emt 0:09:40]} 30. Nh4 {[%emt 0:01:00]} fxe4 {[%emt 0:12:14]} 31. Qg4+ {[%emt 0:00:04]} Kh8 {[%emt 0:00:50]} 32. Qf5 {[%emt 0:06:09]} Qh6 {[%emt 0:05:29]} 33. Ng2 {[%emt 0:02:56]} e3 {[%emt 0:02:20]} 34. Nxf4 {[%emt 0:00:23]} exf4 {[%emt 0:02:07]} 35. Kf1 {[%emt 0:02:01]} exf2 {[%emt 0:07:35]} 36. Qe5+ {[%emt 0:01:38]} Qg7 {[%emt 0:00:13]} 37. Qe8+ {[%emt 0:00:40]} Qg8 {[%emt 0:00:09]} 38. Qe5+ {[%emt 0:01:16]} 1/2-1/2

[Event "Czech Open-E Teams 2022"]
[Site "Pardubice"]
[Date "2022.07.17"]
[Round "7.16"]
[White "Sykora, Marek"]
[Black "Jasny, Stanislav"]
[Result "1-0"]
[ECO "B23"]
[WhiteElo "2240"]
[BlackElo "2261"]
[Annotator "ChessBase"]
[PlyCount "77"]
[EventDate "2022.07.14"]
[EventType "team-tourn"]
[EventCountry "CZE"]
[SourceTitle "playchess.com"]
[Source "ChessBase"]
[SourceQuality "1"]
[TimeControl "5400+30"]

1. e4 c5 2. Nc3 e6 3. g3 d5 4. d3 Nc6 5. Bg2 Nf6 6. f4 Be7 7. e5 Nd7 8. Nf3 a6 9. Ne2 b6 10. d4 Qc7 11. c3 a5 12. f5 Ba6 13. fxe6 fxe6 14. a3 O-O 15. O-O Rf7 16. Be3 Raf8 17. Nd2 Ncxe5 18. Bf4 g5 19. Bxe5 Nxe5 20. dxe5 Qxe5 21. Re1 Qe3+ 22. Kh1 Rf2 23. Nf1 Rxf1+ 24. Bxf1 Rxf1+ 25. Rxf1 Bxe2 26. Qe1 Qe4+ 27. Kg1 c4 28. h3 Bc5+ 29. Kh2 e5 30. Rf6 Kg7 31. Re6 Kf7 32. Rc6 Be3 33. Qb1 Qd3 34. Rd6 d4 35. cxd4 e4 36. Rxb6 Bf3 37. Qxd3 cxd3 38. Rb3 a4 39. Rxd3 1-0

[Event "Czech Open-E Teams 2022"]
[Site "Pardubice"]
[Date "2022.07.17"]
[Round "7.17"]
[White "Stalmach, Richard"]
[Black "Sprenar, Petr"]
[Result "1-0"]
[ECO "D31"]
[WhiteElo "2363"]
[BlackElo "2276"]
[Annotator "ChessBase"]
[PlyCount "59"]
[EventDate "2022.07.14"]
[EventType "team-tourn"]
[EventCountry "CZE"]
[SourceTitle "playchess.com"]
[Source "ChessBase"]
[SourceQuality "1"]
[TimeControl "5400+30"]

1. d4 d5 2. c4 e6 3. Nc3 Bb4 4. cxd5 exd5 5. Bf4 c6 6. e3 Nf6 7. Bd3 O-O 8. Qc2 Bd6 9. Nge2 Re8 10. h3 Qe7 11. O-O-O Nbd7 12. g4 Nf8 13. Bxd6 Qxd6 14. Nf4 Ng6 15. Nce2 Ne4 16. Rhf1 Bd7 17. f3 Ng5 18. Nxg6 hxg6 19. h4 Nh7 20. e4 dxe4 21. fxe4 Bxg4 22. e5 Qe7 23. Rf4 Be6 24. h5 Nf8 25. hxg6 Nxg6 26. Bxg6 fxg6 27. Qxg6 Bf7 28. Qg3 c5 29. Rg1 Bh5 30. Rh1 1-0

[Event "Czech Open-E Teams 2022"]
[Site "Pardubice"]
[Date "2022.07.17"]
[Round "7.18"]
[White "Tichy, Stepan"]
[Black "Mica, Marek"]
[Result "1/2-1/2"]
[ECO "D02"]
[WhiteElo "2207"]
[BlackElo "2304"]
[Annotator "ChessBase"]
[PlyCount "58"]
[EventDate "2022.07.14"]
[EventType "team-tourn"]
[EventCountry "CZE"]
[SourceTitle "playchess.com"]
[Source "ChessBase"]
[SourceQuality "1"]
[TimeControl "5400+30"]

1. d4 {[%emt 0:01:28]} Nf6 {[%emt 0:00:08]} 2. Nf3 {[%emt 0:00:18]} d5 {[%emt 0:00:31]} 3. Bf4 {[%emt 0:00:18]} e6 {[%emt 0:00:23]} 4. c3 {[%emt 0:00:21]} Bd6 {[%emt 0:00:16]} 5. Bg3 {[%emt 0:00:07]} c5 {[%emt 0:00:22]} 6. e3 {[%emt 0:00:16]} Qc7 {[%emt 0:00:19]} 7. Bxd6 {[%emt 0:02:01]} Qxd6 {[%emt 0:00:10]} 8. Ne5 {[%emt 0:00:04]} O-O {[%emt 0:00:55]} 9. Bd3 {[%emt 0:00:59]} Nbd7 {[%emt 0:01:23]} 10. f4 {[%emt 0:00:47]} b6 {[%emt 0:02:05]} 11. Nd2 {[%emt 0:00:52]} Bb7 {[%emt 0:00:25]} 12. O-O {[%emt 0:00:43]} Rfd8 {[%emt 0:00:46]} 13. Qf3 {[%emt 0:03:57]} Qe7 {[%emt 0:01:53]} 14. Qh3 {[%emt 0:02:34]} Ne4 {[%emt 0:02:23]} 15. Nxe4 {[%emt 0:03:33]} dxe4 {[%emt 0:00:29]} 16. Bc2 {[%emt 0:01:54]} f5 {[%emt 0:03:34]} 17. Bb3 {[%emt 0:02:06]} Nxe5 {[%emt 0:02:35]} 18. fxe5 {[%emt 0:00:30]} g6 {[%emt 0:00:34]} 19. Rf2 {[%emt 0:02:46]} cxd4 {[%emt 0:00:52]} 20. cxd4 {[%emt 0:00:16]} Rac8 {[%emt 0:00:40]} 21. g4 {[%emt 0:00:33]} Bd5 {[%emt 0:01:08]} 22. Bxd5 {[%emt 0:00:49]} Rxd5 {[%emt 0:00:27]} 23. Qg2 {[%emt 0:00:35]} Kh8 {[%emt 0:04:51]} 24. Kh1 {[%emt 0:02:43]} Rd7 {[%emt 0:01:11]} 25. gxf5 {[%emt 0:00:36]} gxf5 {[%emt 0:02:12]} 26. Rg1 {[%emt 0:00:16]} Rdd8 {[%emt 0:06:31]} 27. Qh3 {[%emt 0:04:30]} Rg8 {[%emt 0:02:44]} 28. Rfg2 {[%emt 0:00:11]} Rxg2 {[%emt 0:02:58]} 29. Qxg2 Qf7 {[%emt 0:03:51]} 1/2-1/2

[Event "Czech Open-E Teams 2022"]
[Site "Pardubice"]
[Date "2022.07.17"]
[Round "7.19"]
[White "Frank, Adam"]
[Black "Galicek, Stanislav"]
[Result "1-0"]
[ECO "B96"]
[WhiteElo "2313"]
[BlackElo "2071"]
[Annotator "ChessBase"]
[PlyCount "35"]
[EventDate "2022.07.14"]
[EventType "team-tourn"]
[EventCountry "CZE"]
[SourceTitle "playchess.com"]
[Source "ChessBase"]
[SourceQuality "1"]
[TimeControl "5400+30"]

1. e4 {[%emt 0:00:02]} c5 {[%emt 0:00:23]} 2. Nf3 {[%emt 0:00:04]} d6 {[%emt 0:00:06]} 3. d4 {[%emt 0:00:03]} cxd4 {[%emt 0:00:06]} 4. Nxd4 {[%emt 0:00:03]} Nf6 {[%emt 0:00:09]} 5. Nc3 {[%emt 0:00:03]} a6 {[%emt 0:00:23]} 6. Bg5 {[%emt 0:00:05]} e6 {[%emt 0:01:00]} 7. f4 {[%emt 0:00:04]} Nbd7 {[%emt 0:05:16]} 8. Qe2 {[%emt 0:00:20]} Qc7 {[%emt 0:02:19]} 9. O-O-O {[%emt 0:00:06]} b5 {[%emt 0:08:23]} 10. a3 {[%emt 0:00:04]} Bb7 {[%emt 0:02:29]} 11. g4 {[%emt 0:00:23]} Be7 {[%emt 0:04:43]} 12. Bg2 {[%emt 0:04:01]} Qc4 {[%emt 0:05:40]} 13. Qd2 {[%emt 0:09:48]} O-O-O {[%emt 0:25:54]} 14. Bh4 {[%emt 0:08:09]} Rhe8 {[%emt 0:09:22]} 15. g5 {[%emt 0:01:02]} Nh5 {[%emt 0:02:20]} 16. Bf2 {[%emt 0:17:28]} g6 {[%emt 0:11:27]} 17. b3 {[%emt 0:06:14]} Qc7 {[%emt 0:07:01]} 18. Ndxb5 {[%emt 0:00:17]} 1-0

[Event "Czech Open-E Teams 2022"]
[Site "Pardubice"]
[Date "2022.07.17"]
[Round "7.20"]
[White "Postl, Petr"]
[Black "Gnojek, Petr"]
[Result "0-1"]
[ECO "B23"]
[WhiteElo "1900"]
[BlackElo "2295"]
[Annotator "ChessBase"]
[PlyCount "70"]
[EventDate "2022.07.14"]
[EventType "team-tourn"]
[EventCountry "CZE"]
[SourceTitle "playchess.com"]
[Source "ChessBase"]
[SourceQuality "1"]
[TimeControl "5400+30"]

1. e4 {[%emt 0:01:05]} c5 {[%emt 0:00:07]} 2. Nc3 {[%emt 0:00:09]} e6 {[%emt 0:00:09]} 3. f4 {[%emt 0:00:15]} d5 {[%emt 0:00:56]} 4. exd5 {[%emt 0:05:22]} exd5 {[%emt 0:00:05]} 5. Nf3 {[%emt 0:06:16]} Nf6 {[%emt 0:00:27]} 6. Bb5+ {[%emt 0:02:21]} Nbd7 {[%emt 0:07:16]} 7. O-O {[%emt 0:05:04]} Be7 {[%emt 0:00:14]} 8. Re1 {[%emt 0:04:31]} O-O {[%emt 0:01:44]} 9. Ne5 {[%emt 0:07:02]} a6 {[%emt 0:13:53]} 10. Bxd7 {[%emt 0:05:10]} Bxd7 {[%emt 0:00:12]} 11. Nxd7 {[%emt 0:01:26]} Qxd7 {[%emt 0:00:06]} 12. d3 {[%emt 0:00:43]} Rfe8 {[%emt 0:04:33]} 13. Qf3 {[%emt 0:02:34]} Qc6 {[%emt 0:13:18]} 14. Bd2 {[%emt 0:03:23]} c4 {[%emt 0:05:54]} 15. Kh1 {[%emt 0:12:36]} cxd3 {[%emt 0:17:47]} 16. cxd3 {[%emt 0:05:50]} Bc5 {[%emt 0:04:40]} 17. g4 {[%emt 0:15:18]} d4 {[%emt 0:07:09]} 18. Qxc6 {[%emt 0:01:01]} bxc6 {[%emt 0:00:06]} 19. Ne4 {[%emt 0:00:08]} Nxe4 {[%emt 0:00:05]} 20. dxe4 {[%emt 0:01:35]} Rab8 {[%emt 0:01:36]} 21. b3 {[%emt 0:01:35]} Ba3 {[%emt 0:02:29]} 22. Rab1 {[%emt 0:04:44]} c5 {[%emt 0:00:14]} 23. e5 {[%emt 0:00:37]} Rbc8 {[%emt 0:11:48]} 24. Bc1 {[%emt 0:03:16]} Bb4 {[%emt 0:00:05]} 25. Rd1 {[%emt 0:00:05]} f6 {[%emt 0:00:38]} 26. a3 {[%emt 0:02:12]} Bc3 {[%emt 0:00:28]} 27. exf6 {[%emt 0:00:56]} gxf6 {[%emt 0:00:05]} 28. Bd2 {[%emt 0:00:34]} Re2 {[%emt 0:01:21]} 29. Be1 {[%emt 0:04:10]} Rce8 {[%emt 0:01:40]} 30. Bg3 {[%emt 0:00:13]} Ra2 {[%emt 0:01:40]} 31. a4 {[%emt 0:01:17]} f5 {[%emt 0:00:35]} 32. gxf5 {[%emt 0:00:31]} Ree2 {[%emt 0:00:05]} 33. Kg1 {[%emt 0:00:15]} Kf7 {[%emt 0:00:07]} 34. Rd3 {[%emt 0:04:33]} Kf6 {[%emt 0:00:30]} 35. Rf3 {[%emt 0:00:07]} Kxf5 {[%emt 0:00:06]} 0-1

[Event "Czech Open-E Teams 2022"]
[Site "Pardubice"]
[Date "2022.07.17"]
[Round "7.22"]
[White "Vyprachticky, David"]
[Black "Soural, Jan"]
[Result "1/2-1/2"]
[ECO "B35"]
[WhiteElo "2302"]
[BlackElo "2119"]
[Annotator "ChessBase"]
[PlyCount "31"]
[EventDate "2022.07.14"]
[EventType "team-tourn"]
[EventCountry "CZE"]
[SourceTitle "playchess.com"]
[Source "ChessBase"]
[SourceQuality "1"]
[TimeControl "5400+30"]

1. e4 c5 {[%emt 0:01:20]} 2. Nf3 {[%emt 0:00:16]} Nc6 {[%emt 0:00:04]} 3. d4 {[%emt 0:00:31]} cxd4 {[%emt 0:00:04]} 4. Nxd4 {[%emt 0:00:05]} g6 {[%emt 0:00:05]} 5. Nc3 {[%emt 0:00:36]} Bg7 {[%emt 0:00:06]} 6. Be3 {[%emt 0:00:06]} Nf6 {[%emt 0:02:36]} 7. Bc4 {[%emt 0:00:09]} O-O {[%emt 0:00:07]} 8. Bb3 {[%emt 0:00:05]} d6 {[%emt 0:00:09]} 9. f3 {[%emt 0:00:12]} Nxd4 {[%emt 0:00:11]} 10. Bxd4 {[%emt 0:00:17]} Be6 {[%emt 0:00:05]} 11. Bxe6 {[%emt 0:06:34]} fxe6 {[%emt 0:00:02]} 12. Qd2 {[%emt 0:03:53]} Qa5 {[%emt 0:01:47]} 13. O-O-O {[%emt 0:01:39]} b5 {[%emt 0:04:41]} 14. Kb1 {[%emt 0:01:06]} b4 {[%emt 0:04:11]} 15. Ne2 {[%emt 0:00:08]} Qb5 {[%emt 0:18:57]} 16. Qd3 {[%emt 0:05:42]} 1/2-1/2